[Event "Titled Tuesday Blitz February 28 Late 2023"]
[White "Floresvillar Gonzalez, Luis Migu"]
[Black "Romero Ruscalleda, Josep"]
[WhiteFideId "5100542"]
[BlackFideId "2231859"]
[WhiteElo "2040"]
[BlackElo "2183"]
[Result "0-1"]
[Round "11"]
[TimeControl "180+2"]
[Date "2023.02.28"]
[WhiteClock "0:00:13"]
[BlackClock "0:00:23"]

1. d4 {[%clk 0:02:56]}  g6 {[%clk 0:03:00]} 2. c3 {[%clk 0:02:55]}  Bg7 {[%clk 0:03:00]} 3. Nd2 {[%clk 0:02:54]}  d6 {[%clk 0:03:01]} 4. e4 {[%clk 0:02:54]}  e5 {[%clk 0:02:59]} 5. dxe5 {[%clk 0:02:50]}  dxe5 {[%clk 0:02:59]} 6. Bc4 {[%clk 0:02:48]}  Ne7 {[%clk 0:02:57]} 7. b4 {[%clk 0:02:48]}  O-O {[%clk 0:02:56]} 8. Ngf3 {[%clk 0:02:45]}  c6 {[%clk 0:02:55]} 9. O-O {[%clk 0:02:45]}  a5 {[%clk 0:02:51]} 10. a3 {[%clk 0:02:39]}  Nd7 {[%clk 0:02:34]} 11. Bb2 {[%clk 0:02:37]}  Nb6 {[%clk 0:02:24]} 12. Bb3 {[%clk 0:02:33]}  axb4 {[%clk 0:02:14]} 13. cxb4 {[%clk 0:02:27]}  Qd3 {[%clk 0:02:03]} 14. Qc2 {[%clk 0:01:55]}  Qxc2 {[%clk 0:02:02]} 15. Bxc2 {[%clk 0:01:54]}  Be6 {[%clk 0:02:00]} 16. Bxe5 {[%clk 0:01:48]}  f6 {[%clk 0:01:51]} 17. Bd6 {[%clk 0:01:44]}  Rfe8 {[%clk 0:01:52]} 18. Bb3 {[%clk 0:01:37]}  Nec8 {[%clk 0:01:45]} 19. Bxe6+ {[%clk 0:01:33]}  Rxe6 {[%clk 0:01:45]} 20. Bc5 {[%clk 0:01:34]}  Na4 {[%clk 0:01:35]} 21. Bd4 {[%clk 0:01:11]}  Ncb6 {[%clk 0:01:30]} 22. Rfe1 {[%clk 0:01:03]}  Rae8 {[%clk 0:01:30]} 23. Rac1 {[%clk 0:00:51]}  h5 {[%clk 0:01:19]} 24. h3 {[%clk 0:00:50]}  g5 {[%clk 0:01:15]} 25. g4 {[%clk 0:00:47]}  Kf7 {[%clk 0:01:09]} 26. gxh5 {[%clk 0:00:40]}  Rh8 {[%clk 0:01:09]} 27. h4 {[%clk 0:00:39]}  g4 {[%clk 0:01:04]} 28. Nh2 {[%clk 0:00:34]}  Rxh5 {[%clk 0:01:04]} 29. Nxg4 {[%clk 0:00:33]}  Rxh4 {[%clk 0:01:05]} 30. f3 {[%clk 0:00:33]}  f5 {[%clk 0:00:58]} 31. Bxg7 {[%clk 0:00:28]}  fxg4 {[%clk 0:00:58]} 32. Bd4 {[%clk 0:00:19]}  gxf3 {[%clk 0:00:57]} 33. Nxf3 {[%clk 0:00:19]}  Rg6+ {[%clk 0:00:50]} 34. Kf2 {[%clk 0:00:18]}  Rhg4 {[%clk 0:00:43]} 35. Rg1 {[%clk 0:00:18]}  Ke6 {[%clk 0:00:34]} 36. Rxg4 {[%clk 0:00:16]}  Rxg4 {[%clk 0:00:33]} 37. Bxb6 {[%clk 0:00:15]}  Nxb6 {[%clk 0:00:32]} 38. Nd4+ {[%clk 0:00:15]}  Ke5 {[%clk 0:00:29]} 39. Kf3 {[%clk 0:00:16]}  Rf4+ {[%clk 0:00:28]} 40. Ke3 {[%clk 0:00:15]}  Rxe4+ {[%clk 0:00:28]} 41. Kf3 {[%clk 0:00:13]}  Rxd4 {[%clk 0:00:28]} 42. Re1+ {[%clk 0:00:13]}  Kd6 {[%clk 0:00:27]} 43. Re8 {[%clk 0:00:12]}  Rd3+ {[%clk 0:00:26]} 44. Ke4 {[%clk 0:00:12]}  Rxa3 {[%clk 0:00:26]} 45. Rb8 {[%clk 0:00:13]}  Kc7 {[%clk 0:00:26]} 46. Rh8 {[%clk 0:00:12]}  Rb3 {[%clk 0:00:25]} 47. Rh3 {[%clk 0:00:12]}  Rxh3 {[%clk 0:00:24]} 48. Kd4 {[%clk 0:00:12]}  Rh4+ {[%clk 0:00:23]} 49. Kc5 {[%clk 0:00:13]}  Rc4# {[%clk 0:00:23]} 0-1


[Site "https://www.chess.com"]

[Event "Titled Tuesday Blitz February 28 Late 2023"]
[White "Jenkins, Drake"]
[Black "olga-belka"]
[WhiteFideId "2022397"]
[WhiteElo "2306"]
[BlackElo "2220"]
[Result "0-1"]
[Round "11"]
[TimeControl "180+2"]
[Date "2023.02.28"]
[WhiteClock "0:00:03"]
[BlackClock "0:00:05"]

1. Nf3 {[%clk 0:03:00]}  Nf6 {[%clk 0:02:58]} 2. c4 {[%clk 0:03:01]}  g6 {[%clk 0:02:58]} 3. g3 {[%clk 0:03:01]}  Bg7 {[%clk 0:02:57]} 4. Bg2 {[%clk 0:03:01]}  O-O {[%clk 0:02:54]} 5. Nc3 {[%clk 0:03:01]}  c6 {[%clk 0:02:52]} 6. O-O {[%clk 0:02:59]}  d5 {[%clk 0:02:52]} 7. Nxd5 {[%clk 0:02:59]}  cxd5 {[%clk 0:02:51]} 8. cxd5 {[%clk 0:02:58]}  Nxd5 {[%clk 0:02:50]} 9. d4 {[%clk 0:02:57]}  Nc6 {[%clk 0:02:47]} 10. e4 {[%clk 0:02:56]}  Nb6 {[%clk 0:02:47]} 11. d5 {[%clk 0:02:55]}  Ne5 {[%clk 0:02:46]} 12. Nd4 {[%clk 0:02:53]}  Nbc4 {[%clk 0:02:39]} 13. b3 {[%clk 0:02:50]}  Nd6 {[%clk 0:02:24]} 14. Bb2 {[%clk 0:02:49]}  Qb6 {[%clk 0:02:17]} 15. h3 {[%clk 0:02:47]}  Nb5 {[%clk 0:02:10]} 16. Nxb5 {[%clk 0:02:19]}  Qxb5 {[%clk 0:02:10]} 17. Qd2 {[%clk 0:02:07]}  Bd7 {[%clk 0:01:54]} 18. Kh2 {[%clk 0:02:06]}  Rac8 {[%clk 0:01:48]} 19. f4 {[%clk 0:02:05]}  Nd3 {[%clk 0:01:42]} 20. Bxg7 {[%clk 0:02:03]}  Kxg7 {[%clk 0:01:42]} 21. Rad1 {[%clk 0:01:49]}  Nb4 {[%clk 0:01:36]} 22. a3 {[%clk 0:01:33]}  Na6 {[%clk 0:01:28]} 23. b4 {[%clk 0:01:27]}  Qc4 {[%clk 0:01:21]} 24. Rc1 {[%clk 0:01:24]}  Qb3 {[%clk 0:01:19]} 25. Qd4+ {[%clk 0:01:22]}  Kg8 {[%clk 0:01:18]} 26. Qxa7 {[%clk 0:01:22]}  Qxa3 {[%clk 0:01:08]} 27. Rb1 {[%clk 0:01:06]}  Bb5 {[%clk 0:01:04]} 28. Rf2 {[%clk 0:00:56]}  Qd3 {[%clk 0:00:56]} 29. Re1 {[%clk 0:00:50]}  Qc3 {[%clk 0:00:41]} 30. Rd1 {[%clk 0:00:37]}  Rc7 {[%clk 0:00:40]} 31. d6 {[%clk 0:00:25]}  exd6 {[%clk 0:00:39]} 32. Rxd6 {[%clk 0:00:19]}  Nxb4 {[%clk 0:00:34]} 33. e5 {[%clk 0:00:15]}  Nd3 {[%clk 0:00:23]} 34. Rf3 {[%clk 0:00:15]}  Qb4 {[%clk 0:00:19]} 35. Qb6 {[%clk 0:00:14]}  Rc6 {[%clk 0:00:16]} 36. Qxb7 {[%clk 0:00:10]}  Rxd6 {[%clk 0:00:15]} 37. exd6 {[%clk 0:00:11]}  Ne1 {[%clk 0:00:14]} 38. Rf2 {[%clk 0:00:06]}  Nxg2 {[%clk 0:00:14]} 39. Rxg2 {[%clk 0:00:07]}  Qc5 {[%clk 0:00:12]} 40. f5 {[%clk 0:00:06]}  gxf5 {[%clk 0:00:11]} 41. Qc7 {[%clk 0:00:04]}  Qxc7 {[%clk 0:00:10]} 42. dxc7 {[%clk 0:00:05]}  Rc8 {[%clk 0:00:11]} 43. Rc2 {[%clk 0:00:05]}  Kf8 {[%clk 0:00:10]} 44. g4 {[%clk 0:00:04]}  fxg4 {[%clk 0:00:09]} 45. hxg4 {[%clk 0:00:05]}  Ke7 {[%clk 0:00:08]} 46. Kg3 {[%clk 0:00:05]}  Kd7 {[%clk 0:00:08]} 47. Rf2 {[%clk 0:00:05]}  Rxc7 {[%clk 0:00:06]} 48. Rxf7+ {[%clk 0:00:05]}  Kd6 {[%clk 0:00:06]} 49. Rxc7 {[%clk 0:00:05]}  Kxc7 {[%clk 0:00:06]} 50. Kf4 {[%clk 0:00:05]}  Kd6 {[%clk 0:00:05]} 51. Kg5 {[%clk 0:00:05]}  Bd3 {[%clk 0:00:05]} 52. Kf6 {[%clk 0:00:04]}  Kd7 {[%clk 0:00:05]} 53. g5 {[%clk 0:00:03]}  Bg6 {[%clk 0:00:05]} 54. Kg7 {[%clk 0:00:03]}  Ke6 {[%clk 0:00:05]} 55. Kh6 {[%clk 0:00:03]}  Kf5 {[%clk 0:00:05]} 56. Kg7 {[%clk 0:00:03]}  Kxg5 {[%clk 0:00:05]} 0-1


[Site "https://www.chess.com"]

[Event "Titled Tuesday Blitz February 28 Late 2023"]
[White "mohsengabr2002"]
[Black "Huang, Alex"]
[BlackFideId "4302508"]
[WhiteElo "2318"]
[BlackElo "2029"]
[Result "1-0"]
[Round "11"]
[TimeControl "180+2"]
[Date "2023.02.28"]
[WhiteClock "0:00:14"]
[BlackClock "0:00:03"]

1. g3 {[%clk 0:02:54]}  g6 {[%clk 0:02:59]} 2. f3 {[%clk 0:02:54]}  Bg7 {[%clk 0:02:59]} 3. e3 {[%clk 0:02:55]}  Nf6 {[%clk 0:03:00]} 4. d3 {[%clk 0:02:56]}  O-O {[%clk 0:03:01]} 5. c3 {[%clk 0:02:57]}  c5 {[%clk 0:03:01]} 6. Nh3 {[%clk 0:02:58]}  d6 {[%clk 0:03:01]} 7. Nf2 {[%clk 0:02:59]}  Nc6 {[%clk 0:03:01]} 8. Bg2 {[%clk 0:03:00]}  Rb8 {[%clk 0:03:02]} 9. O-O {[%clk 0:03:00]}  b5 {[%clk 0:03:02]} 10. e4 {[%clk 0:02:59]}  Bd7 {[%clk 0:03:02]} 11. f4 {[%clk 0:02:59]}  a5 {[%clk 0:03:02]} 12. g4 {[%clk 0:02:57]}  b4 {[%clk 0:02:54]} 13. f5 {[%clk 0:02:54]}  Qc7 {[%clk 0:02:46]} 14. Bf4 {[%clk 0:02:41]}  Ne8 {[%clk 0:02:22]} 15. a4 {[%clk 0:02:37]}  bxa3 {[%clk 0:02:12]} 16. bxa3 {[%clk 0:02:35]}  Rb2 {[%clk 0:02:05]} 17. Qc1 {[%clk 0:02:34]}  Qb6 {[%clk 0:02:02]} 18. Nd1 {[%clk 0:02:26]}  Rb5 {[%clk 0:01:52]} 19. a4 {[%clk 0:02:11]}  Rb4 {[%clk 0:01:28]} 20. cxb4 {[%clk 0:02:06]}  Bxa1 {[%clk 0:01:27]} 21. b5 {[%clk 0:02:06]}  Bd4+ {[%clk 0:01:20]} 22. Kh1 {[%clk 0:02:05]}  Ne5 {[%clk 0:01:16]} 23. Qc2 {[%clk 0:01:51]}  Nxg4 {[%clk 0:01:11]} 24. Nbc3 {[%clk 0:01:47]}  Nef6 {[%clk 0:01:10]} 25. h3 {[%clk 0:01:45]}  Ne5 {[%clk 0:01:08]} 26. Nb2 {[%clk 0:01:36]}  Rc8 {[%clk 0:00:42]} 27. Bg5 {[%clk 0:01:36]}  Kg7 {[%clk 0:00:36]} 28. Bxf6+ {[%clk 0:01:30]}  exf6 {[%clk 0:00:35]} 29. Nd5 {[%clk 0:01:29]}  Qd8 {[%clk 0:00:35]} 30. fxg6 {[%clk 0:01:24]}  hxg6 {[%clk 0:00:24]} 31. Nxf6 {[%clk 0:01:22]}  Nxd3 {[%clk 0:00:16]} 32. Nh5+ {[%clk 0:01:12]}  gxh5 {[%clk 0:00:13]} 33. Nxd3 {[%clk 0:01:12]}  Qe7 {[%clk 0:00:08]} 34. Qe2 {[%clk 0:01:08]}  Rh8 {[%clk 0:00:08]} 35. Nf4 {[%clk 0:01:07]}  Qg5 {[%clk 0:00:07]} 36. Nd5 {[%clk 0:01:01]}  Kf8 {[%clk 0:00:07]} 37. Qf3 {[%clk 0:00:58]}  Qg7 {[%clk 0:00:06]} 38. Nf4 {[%clk 0:00:45]}  Bg4 {[%clk 0:00:06]} 39. Qd3 {[%clk 0:00:33]}  Bd7 {[%clk 0:00:06]} 40. b6 {[%clk 0:00:32]}  Be5 {[%clk 0:00:06]} 41. b7 {[%clk 0:00:30]}  Ke7 {[%clk 0:00:06]} 42. Nd5+ {[%clk 0:00:28]}  Ke6 {[%clk 0:00:05]} 43. Qc4 {[%clk 0:00:19]}  Qg3 {[%clk 0:00:03]} 44. Ne3+ {[%clk 0:00:16]}  Ke7 {[%clk 0:00:03]} 45. Qxf7+ {[%clk 0:00:16]}  Kd8 {[%clk 0:00:03]} 46. b8=Q+ {[%clk 0:00:15]}  Bc8 {[%clk 0:00:03]} 47. Qbc7# {[%clk 0:00:14]} 1-0


[Site "https://www.chess.com"]

[Event "Titled Tuesday Blitz February 28 Late 2023"]
[White "Lopez Perdomo, Juan David"]
[Black "Gatterer, Florian"]
[WhiteFideId "4405137"]
[BlackFideId "811688"]
[WhiteElo "1965"]
[BlackElo "2221"]
[Result "1-0"]
[Round "11"]
[TimeControl "180+2"]
[Date "2023.02.28"]
[WhiteClock "0:00:10"]
[BlackClock "0:00:01"]

1. e4 {[%clk 0:03:00]}  e5 {[%clk 0:02:59]} 2. d4 {[%clk 0:02:57]}  exd4 {[%clk 0:02:59]} 3. Nf3 {[%clk 0:02:57]}  Nc6 {[%clk 0:02:56]} 4. Bc4 {[%clk 0:02:58]}  Bb4+ {[%clk 0:02:54]} 5. c3 {[%clk 0:02:58]}  dxc3 {[%clk 0:02:54]} 6. bxc3 {[%clk 0:02:59]}  Ba5 {[%clk 0:02:50]} 7. Bg5 {[%clk 0:02:43]}  Nge7 {[%clk 0:02:45]} 8. h4 {[%clk 0:02:18]}  O-O {[%clk 0:02:42]} 9. h5 {[%clk 0:02:18]}  h6 {[%clk 0:02:41]} 10. Bh4 {[%clk 0:02:16]}  d6 {[%clk 0:02:37]} 11. O-O {[%clk 0:02:00]}  Be6 {[%clk 0:02:37]} 12. Bxe6 {[%clk 0:01:59]}  fxe6 {[%clk 0:02:37]} 13. Qb3 {[%clk 0:02:00]}  Qd7 {[%clk 0:02:31]} 14. Nbd2 {[%clk 0:01:51]}  Bb6 {[%clk 0:02:21]} 15. Rad1 {[%clk 0:01:49]}  Kh8 {[%clk 0:02:14]} 16. Nc4 {[%clk 0:01:49]}  Rae8 {[%clk 0:02:01]} 17. Nce5 {[%clk 0:01:48]}  Qc8 {[%clk 0:01:31]} 18. Ng4 {[%clk 0:01:19]}  e5 {[%clk 0:01:24]} 19. Ne3 {[%clk 0:01:14]}  Ng8 {[%clk 0:00:49]} 20. Nf5 {[%clk 0:01:09]}  Nce7 {[%clk 0:00:43]} 21. Bxe7 {[%clk 0:01:06]}  Nxe7 {[%clk 0:00:42]} 22. N3h4 {[%clk 0:01:07]}  Nxf5 {[%clk 0:00:40]} 23. Ng6+ {[%clk 0:00:56]}  Kh7 {[%clk 0:00:39]} 24. Nxf8+ {[%clk 0:00:56]}  Rxf8 {[%clk 0:00:39]} 25. exf5 {[%clk 0:00:57]}  Qxf5 {[%clk 0:00:39]} 26. Qd5 {[%clk 0:00:56]}  Qxh5 {[%clk 0:00:36]} 27. Rd3 {[%clk 0:00:41]}  Rf4 {[%clk 0:00:25]} 28. Rh3 {[%clk 0:00:37]}  Qf5 {[%clk 0:00:18]} 29. Qxb7 {[%clk 0:00:33]}  Bxf2+ {[%clk 0:00:15]} 30. Kh1 {[%clk 0:00:33]}  Bb6 {[%clk 0:00:14]} 31. Rxf4 {[%clk 0:00:23]}  Qxf4 {[%clk 0:00:14]} 32. Qf3 {[%clk 0:00:17]}  Qc1+ {[%clk 0:00:14]} 33. Kh2 {[%clk 0:00:17]}  Qg1+ {[%clk 0:00:12]} 34. Kg3 {[%clk 0:00:18]}  Qe1+ {[%clk 0:00:11]} 35. Kg4 {[%clk 0:00:18]}  Qd2 {[%clk 0:00:09]} 36. Qf5+ {[%clk 0:00:10]}  Kh8 {[%clk 0:00:08]} 37. Qf8+ {[%clk 0:00:09]}  Kh7 {[%clk 0:00:07]} 38. Rg3 {[%clk 0:00:10]}  Qg5+ {[%clk 0:00:06]} 39. Kf3 {[%clk 0:00:11]}  Qh5+ {[%clk 0:00:05]} 40. Rg4 {[%clk 0:00:10]}  Qf5+ {[%clk 0:00:01]} 41. Qxf5+ {[%clk 0:00:10]}  Kh8 {[%clk 0:00:01]} 42. Qf8+ {[%clk 0:00:10]} 1-0


[Site "https://www.chess.com"]

[Event "Titled Tuesday Blitz February 28 Late 2023"]
[White "Sailer, Mike"]
[Black "Zampronha, Wladimir Camilo"]
[WhiteFideId "2012901"]
[BlackFideId "2103087"]
[WhiteElo "2109"]
[BlackElo "2176"]
[Result "1-0"]
[Round "11"]
[TimeControl "180+2"]
[Date "2023.02.28"]
[WhiteClock "0:00:04"]
[BlackClock "0:00:01"]

1. d4 {[%clk 0:02:59]}  Nf6 {[%clk 0:02:59]} 2. Bg5 {[%clk 0:02:57]}  Ne4 {[%clk 0:02:58]} 3. Bf4 {[%clk 0:02:57]}  c5 {[%clk 0:02:56]} 4. d5 {[%clk 0:02:56]}  e6 {[%clk 0:02:55]} 5. f3 {[%clk 0:02:52]}  Nf6 {[%clk 0:02:55]} 6. e4 {[%clk 0:02:49]}  exd5 {[%clk 0:02:54]} 7. exd5 {[%clk 0:02:48]}  d6 {[%clk 0:02:55]} 8. Bb5+ {[%clk 0:02:46]}  Bd7 {[%clk 0:02:51]} 9. a4 {[%clk 0:02:42]}  Be7 {[%clk 0:02:47]} 10. Ne2 {[%clk 0:02:33]}  O-O {[%clk 0:02:47]} 11. O-O {[%clk 0:02:31]}  a6 {[%clk 0:02:46]} 12. Bd3 {[%clk 0:02:24]}  Qc7 {[%clk 0:02:44]} 13. Nbc3 {[%clk 0:02:22]}  c4 {[%clk 0:02:41]} 14. Be4 {[%clk 0:02:14]}  Nxe4 {[%clk 0:02:30]} 15. Nxe4 {[%clk 0:02:08]}  Bf5 {[%clk 0:02:21]} 16. N4g3 {[%clk 0:02:02]}  Bg6 {[%clk 0:02:21]} 17. Nd4 {[%clk 0:01:58]}  Re8 {[%clk 0:02:19]} 18. Kh1 {[%clk 0:01:57]}  Nd7 {[%clk 0:02:19]} 19. Re1 {[%clk 0:01:46]}  Bf6 {[%clk 0:02:09]} 20. Qd2 {[%clk 0:01:42]}  Qc5 {[%clk 0:01:55]} 21. Ndf5 {[%clk 0:01:31]}  Ne5 {[%clk 0:01:46]} 22. Ne4 {[%clk 0:01:22]}  Bxf5 {[%clk 0:01:40]} 23. Nxc5 {[%clk 0:01:21]}  dxc5 {[%clk 0:01:39]} 24. Bxe5 {[%clk 0:01:12]}  Bxe5 {[%clk 0:01:39]} 25. f4 {[%clk 0:01:12]}  Bxb2 {[%clk 0:01:37]} 26. Rxe8+ {[%clk 0:01:07]}  Rxe8 {[%clk 0:01:38]} 27. Re1 {[%clk 0:01:07]}  Rd8 {[%clk 0:01:14]} 28. c3 {[%clk 0:01:01]}  Ba3 {[%clk 0:01:10]} 29. Ra1 {[%clk 0:01:00]}  Be4 {[%clk 0:01:07]} 30. Rxa3 {[%clk 0:00:54]}  Rxd5 {[%clk 0:01:06]} 31. Qe2 {[%clk 0:00:45]}  f5 {[%clk 0:01:01]} 32. h3 {[%clk 0:00:43]}  Rd3 {[%clk 0:01:00]} 33. Qf2 {[%clk 0:00:33]}  Rxh3+ {[%clk 0:00:59]} 34. Kg1 {[%clk 0:00:31]}  Rd3 {[%clk 0:00:59]} 35. Qxc5 {[%clk 0:00:29]}  Rd1+ {[%clk 0:00:54]} 36. Kf2 {[%clk 0:00:22]}  Rd2+ {[%clk 0:00:54]} 37. Ke1 {[%clk 0:00:21]}  Rxg2 {[%clk 0:00:53]} 38. Qxc4+ {[%clk 0:00:20]}  Kf8 {[%clk 0:00:53]} 39. Rb3 {[%clk 0:00:15]}  h5 {[%clk 0:00:51]} 40. Rb6 {[%clk 0:00:14]}  h4 {[%clk 0:00:48]} 41. Qc8+ {[%clk 0:00:12]}  Kf7 {[%clk 0:00:48]} 42. Rxb7+ {[%clk 0:00:13]}  Kg6 {[%clk 0:00:46]} 43. Qe6+ {[%clk 0:00:10]}  Kh7 {[%clk 0:00:45]} 44. Qf7 {[%clk 0:00:07]}  Bxb7 {[%clk 0:00:30]} 45. Qxb7 {[%clk 0:00:05]}  h3 {[%clk 0:00:30]} 46. Kf1 {[%clk 0:00:04]}  Rg4 {[%clk 0:00:29]} 47. Qf7 {[%clk 0:00:02]}  Kh6 {[%clk 0:00:27]} 48. Qe6+ {[%clk 0:00:03]}  g6 {[%clk 0:00:22]} 49. Qe5 {[%clk 0:00:02]}  Kh7 {[%clk 0:00:16]} 50. Qe7+ {[%clk 0:00:03]}  Kh6 {[%clk 0:00:16]} 51. Qf8+ {[%clk 0:00:03]}  Kh7 {[%clk 0:00:16]} 52. Qf7+ {[%clk 0:00:03]}  Kh6 {[%clk 0:00:17]} 53. Qg8 {[%clk 0:00:04]}  Rxf4+ {[%clk 0:00:14]} 54. Kg1 {[%clk 0:00:05]}  Rf3 {[%clk 0:00:09]} 55. Kh2 {[%clk 0:00:05]}  g5 {[%clk 0:00:06]} 56. Qh8+ {[%clk 0:00:05]}  Kg6 {[%clk 0:00:07]} 57. Qg8+ {[%clk 0:00:05]}  Kh5 {[%clk 0:00:07]} 58. c4 {[%clk 0:00:05]}  Kg4 {[%clk 0:00:07]} 59. Qd5 {[%clk 0:00:05]}  Rf2+ {[%clk 0:00:06]} 60. Kh1 {[%clk 0:00:05]}  Kg3 {[%clk 0:00:05]} 61. Qd3+ {[%clk 0:00:05]}  Rf3 {[%clk 0:00:05]} 62. Qe2 {[%clk 0:00:05]}  g4 {[%clk 0:00:03]} 63. Qh2+ {[%clk 0:00:05]}  Kh4 {[%clk 0:00:03]} 64. Kg1 {[%clk 0:00:05]}  g3 {[%clk 0:00:03]} 65. Qe2 {[%clk 0:00:05]}  h2+ {[%clk 0:00:02]} 66. Kh1 {[%clk 0:00:05]}  Kh3 {[%clk 0:00:01]} 67. Qxf3 {[%clk 0:00:04]} 1-0


[Site "https://www.chess.com"]

[Event "Titled Tuesday Blitz February 28 Late 2023"]
[White "Chabris, Christopher"]
[Black "Vanek, Tomas"]
[WhiteFideId "2005263"]
[BlackFideId "313459"]
[WhiteElo "2231"]
[BlackElo "2052"]
[Result "0-1"]
[Round "11"]
[TimeControl "180+2"]
[Date "2023.02.28"]
[WhiteClock "0:00:12"]
[BlackClock "0:00:43"]

1. e4 {[%clk 0:02:59]}  c5 {[%clk 0:02:58]} 2. Nf3 {[%clk 0:02:59]}  Nc6 {[%clk 0:02:58]} 3. Bb5 {[%clk 0:02:59]}  g6 {[%clk 0:02:57]} 4. Bxc6 {[%clk 0:02:59]}  dxc6 {[%clk 0:02:56]} 5. d3 {[%clk 0:02:59]}  Bg7 {[%clk 0:02:56]} 6. h3 {[%clk 0:02:58]}  Nh6 {[%clk 0:02:50]} 7. Nc3 {[%clk 0:02:57]}  f6 {[%clk 0:02:47]} 8. Be3 {[%clk 0:02:57]}  b6 {[%clk 0:02:46]} 9. Qd2 {[%clk 0:02:55]}  Nf7 {[%clk 0:02:46]} 10. O-O {[%clk 0:02:47]}  e5 {[%clk 0:02:45]} 11. a3 {[%clk 0:02:47]}  Be6 {[%clk 0:02:45]} 12. b4 {[%clk 0:02:45]}  c4 {[%clk 0:02:37]} 13. Qe2 {[%clk 0:02:35]}  cxd3 {[%clk 0:02:36]} 14. cxd3 {[%clk 0:02:35]}  O-O {[%clk 0:02:30]} 15. Nh2 {[%clk 0:02:28]}  f5 {[%clk 0:02:21]} 16. exf5 {[%clk 0:01:54]}  gxf5 {[%clk 0:02:18]} 17. Rac1 {[%clk 0:01:53]}  Rc8 {[%clk 0:02:12]} 18. Nf3 {[%clk 0:01:45]}  f4 {[%clk 0:01:56]} 19. Bd2 {[%clk 0:01:44]}  Nd6 {[%clk 0:01:56]} 20. Nxe5 {[%clk 0:01:34]}  Bxh3 {[%clk 0:01:51]} 21. Qh5 {[%clk 0:01:01]}  Bxg2 {[%clk 0:01:43]} 22. Rfe1 {[%clk 0:00:29]}  Rf5 {[%clk 0:01:19]} 23. Qg4 {[%clk 0:00:26]}  Rg5 {[%clk 0:01:18]} 24. Qe6+ {[%clk 0:00:25]}  Kh8 {[%clk 0:00:47]} 25. Qxd6 {[%clk 0:00:16]}  Bf3+ {[%clk 0:00:46]} 26. Kf1 {[%clk 0:00:15]}  Rg1+ {[%clk 0:00:43]} 27. Kxg1 {[%clk 0:00:12]}  Qg5+ {[%clk 0:00:43]} 0-1


[Site "https://www.chess.com"]

[Event "Titled Tuesday Blitz February 28 Late 2023"]
[White "Gamage, Wanshini Vidusama"]
[Black "Manu_ChessExcelsior"]
[WhiteFideId "9953752"]
[WhiteElo "2180"]
[BlackElo "1986"]
[Result "1-0"]
[Round "11"]
[TimeControl "180+2"]
[Date "2023.02.28"]
[WhiteClock "0:01:15"]
[BlackClock "0:00:05"]

1. e4 {[%clk 0:03:00]}  e5 {[%clk 0:02:59]} 2. Nf3 {[%clk 0:03:00]}  Nc6 {[%clk 0:02:58]} 3. Bb5 {[%clk 0:02:55]}  a6 {[%clk 0:02:57]} 4. Ba4 {[%clk 0:02:54]}  Nf6 {[%clk 0:02:57]} 5. O-O {[%clk 0:02:53]}  Be7 {[%clk 0:02:57]} 6. Re1 {[%clk 0:02:53]}  b5 {[%clk 0:02:56]} 7. Bb3 {[%clk 0:02:53]}  O-O {[%clk 0:02:56]} 8. c3 {[%clk 0:02:51]}  d5 {[%clk 0:02:55]} 9. exd5 {[%clk 0:02:52]}  Nxd5 {[%clk 0:02:55]} 10. Nxe5 {[%clk 0:02:51]}  Nxe5 {[%clk 0:02:56]} 11. Rxe5 {[%clk 0:02:52]}  c6 {[%clk 0:02:56]} 12. d4 {[%clk 0:02:50]}  Bd6 {[%clk 0:02:56]} 13. Re1 {[%clk 0:02:51]}  Qh4 {[%clk 0:02:57]} 14. g3 {[%clk 0:02:52]}  Qh3 {[%clk 0:02:57]} 15. Bxd5 {[%clk 0:02:52]}  cxd5 {[%clk 0:02:57]} 16. Qf3 {[%clk 0:02:52]}  Ra7 {[%clk 0:02:25]} 17. Bf4 {[%clk 0:02:45]}  Qf5 {[%clk 0:02:14]} 18. Nd2 {[%clk 0:02:28]}  Bxf4 {[%clk 0:02:05]} 19. Qxf4 {[%clk 0:02:27]}  Qxf4 {[%clk 0:02:02]} 20. gxf4 {[%clk 0:02:27]}  a5 {[%clk 0:01:31]} 21. a3 {[%clk 0:02:24]}  Ra6 {[%clk 0:01:27]} 22. Nb3 {[%clk 0:02:23]}  a4 {[%clk 0:01:09]} 23. Nc5 {[%clk 0:02:22]}  Rf6 {[%clk 0:01:10]} 24. Re5 {[%clk 0:02:17]}  Rxf4 {[%clk 0:01:08]} 25. Rae1 {[%clk 0:02:06]}  h6 {[%clk 0:00:57]} 26. Kg2 {[%clk 0:01:49]}  Be6 {[%clk 0:00:48]} 27. Kg3 {[%clk 0:01:45]}  g5 {[%clk 0:00:40]} 28. f3 {[%clk 0:01:35]}  Rh4 {[%clk 0:00:30]} 29. Nxe6 {[%clk 0:01:32]}  fxe6 {[%clk 0:00:29]} 30. Rxe6 {[%clk 0:01:32]}  Rhf4 {[%clk 0:00:17]} 31. R1e3 {[%clk 0:01:30]}  Kg7 {[%clk 0:00:16]} 32. Re7+ {[%clk 0:01:25]}  Kg6 {[%clk 0:00:14]} 33. R7e5 {[%clk 0:01:23]}  R8f5 {[%clk 0:00:08]} 34. Rxf5 {[%clk 0:01:20]}  Rxf5 {[%clk 0:00:09]} 35. h4 {[%clk 0:01:20]}  gxh4+ {[%clk 0:00:08]} 36. Kxh4 {[%clk 0:01:21]}  Rf4+ {[%clk 0:00:07]} 37. Kg3 {[%clk 0:01:21]}  Rf5 {[%clk 0:00:06]} 38. Re6+ {[%clk 0:01:20]}  Kf7 {[%clk 0:00:06]} 39. Re5 {[%clk 0:01:19]}  Rf6 {[%clk 0:00:06]} 40. Rxd5 {[%clk 0:01:19]}  Rg6+ {[%clk 0:00:06]} 41. Kf4 {[%clk 0:01:19]}  Rg2 {[%clk 0:00:06]} 42. Rxb5 {[%clk 0:01:17]}  Kg6 {[%clk 0:00:05]} 43. Rb6+ {[%clk 0:01:14]}  Kg7 {[%clk 0:00:05]} 44. Rb7+ {[%clk 0:01:14]}  Kg6 {[%clk 0:00:05]} 45. Rb8 {[%clk 0:01:15]}  h5 {[%clk 0:00:05]} 46. Rg8+ {[%clk 0:01:15]} 1-0


[Site "https://www.chess.com"]